bitfinex-derivatives/quotes_ETHF0:USTF0_20240920
["timestamp","ask_amount","ask_price","bid_price","bid_amount"]
[1726806031654,3.2078,2547.2,2546.3,4.1339]
[1726806031853,3.2078,2547.2,2546.9,0.39256]
[1726806032046,3.2078,2547.2,2547.0,0.39255]
[1726806032359,1.1106,2547.4,2547.0,0.39255]
[1726806032855,1.1106,2547.4,2546.9,3.60036]
[1726806033245,1.1106,2547.4,2546.9,3.2078]
[1726806033447,1.1944,2547.6,2546.9,3.2078]
[1726806033653,1.1944,2547.6,2546.9,3.60036]
[1726806034258,1.1944,2547.6,2546.9,3.2078]
[1726806034853,1.1007,2547.5,2546.9,3.2078]
[1726806035955,1.1007,2547.5,2547.0,0.39255]
[1726806036374,1.1007,2547.5,2546.9,3.2078]
[1726806037464,3.77,2547.0,2546.3,3.2078]
[1726806037662,2.2393,2546.9,2546.3,3.2078]
[1726806037960,2.2393,2546.9,2546.3,3.60046]
[1726806038154,2.2393,2546.9,2546.2,0.39267]
[1726806038465,6.0093,2546.9,2546.2,0.39267]
[1726806038757,6.0093,2546.9,2546.3,0.39266]
[1726806039161,2.2393,2546.9,2546.3,0.39266]
[1726806039353,6.0093,2546.9,2546.3,0.39266]
[1726806039555,6.0093,2546.9,2546.5,3.2078]
[1726806040059,6.0093,2546.9,2546.3,0.39265]
[1726806040263,6.40188,2546.9,2546.1,4.75569]
[1726806040755,6.40188,2546.9,2546.1,4.75568]
[1726806040955,6.40188,2546.9,2546.2,0.39268]
[1726806041155,6.0093,2546.9,2546.2,0.39268]
[1726806041356,6.0093,2546.9,2546.3,0.39266]
[1726806041756,6.0093,2546.9,2546.3,0.39265]
[1726806042451,2.2393,2546.9,2546.3,0.39265]
[1726806042657,2.2393,2546.9,2546.1,4.363]
[1726806042869,2.2393,2546.9,2546.2,0.39268]
[1726806043351,2.2393,2546.9,2546.3,0.39266]
[1726806043856,2.2393,2546.9,2546.1,4.363]
[1726806044363,2.2393,2546.9,2546.2,0.39267]
[1726806044668,2.2393,2546.9,2546.1,4.363]
[1726806044857,2.2393,2546.9,2546.3,0.39266]
[1726806045761,2.2393,2546.9,2546.1,4.363]
[1726806045961,2.2393,2546.9,2546.2,0.39267]
[1726806046166,2.2393,2546.9,2546.3,0.39266]
[1726806047566,1.1129,2546.9,2546.6,0.39261]
[1726806047757,1.1129,2546.9,2546.7,0.3926]
[1726806048062,1.1129,2546.9,2546.6,0.39261]
[1726806048464,1.1129,2546.9,2546.5,0.39262]
[1726806048664,1.1129,2546.9,2546.4,3.2078]
[1726806049073,1.1129,2546.9,2546.6,0.39261]
[1726806049368,1.1129,2546.9,2546.4,3.2078]
[1726806049870,1.1129,2546.9,2546.3,0.39266]
[1726806050574,1.1129,2546.9,2546.3,0.39265]
[1726806051667,1.1129,2546.9,2546.4,0.39264]
[1726806051974,1.1129,2546.9,2546.1,4.363]
[1726806052565,1.1129,2546.9,2546.4,0.39264]
[1726806052766,1.1129,2546.9,2546.4,0.39265]
[1726806053267,1.1129,2546.9,2546.1,4.363]
[1726806053463,1.50548,2546.9,2546.2,0.39267]
[1726806054074,3.2078,2546.3,2544.9,4.43562488]
[1726806054282,3.99056314,2546.8,2544.9,4.43562488]
[1726806054283,2.30636314,2546.2,2545.3,1.1709]
[1726806054465,2.243,2546.2,2545.3,1.1709]
[1726806054775,2.243,2546.2,2545.5,3.2078]
[1726806056074,2.243,2546.2,2544.9,0.51718464]
[1726806056075,3.6005,2546.1,2545.2,1.1709]
[1726806056383,5.84349,2546.2,2545.2,1.1709]
[1726806056674,5.84349,2546.2,2545.2,1.56373]
[1726806056675,5.4508,2546.2,2545.2,1.56373]
[1726806056867,5.4508,2546.2,2545.2,1.1709]
[1726806057175,5.84348,2546.2,2545.4,3.2078]
[1726806057373,5.84348,2546.2,2545.2,1.1709]
[1726806058177,3.2078,2545.9,2545.2,1.1709]
[1726806059072,3.2078,2545.9,2545.1,3.2078]
[1726806059278,4.68543,2545.9,2545.1,3.2078]
[1726806059670,4.68542,2545.9,2545.1,3.2078]
[1726806060274,4.68543,2545.9,2545.1,3.2078]
[1726806060475,3.9288,2545.8,2545.1,3.2078]
[1726806060672,3.77,2545.7,2545.1,3.2078]
[1726806060865,1.1853,2545.6,2545.1,3.2078]
[1726806061371,1.102,2545.5,2545.1,3.2078]
[1726806062577,1.1853,2545.6,2545.1,4.2902]
[1726806062766,1.1853,2545.6,2545.1,4.68304]
[1726806062971,1.1853,2545.6,2545.4,3.2078]
[1726806063971,1.0849,2545.9,2545.4,3.2078]
[1726806064181,2.1291,2545.9,2545.4,3.2078]
[1726806064978,2.1291,2545.9,2545.1,1.47525]
[1726806065174,2.1291,2545.9,2545.1,1.60060805]
[1726806065581,2.52182,2545.9,2545.3,3.2078]
[1726806065770,2.1291,2545.9,2545.3,3.2078]
[1726806066279,3.2078,2545.6,2545.0,3.2078]
[1726806067373,3.2078,2545.6,2544.8,1.0741]
[1726806067573,3.2078,2545.3,2544.8,1.46699]
[1726806067775,3.2078,2545.3,2544.8,1.0741]
[1726806068880,4.3164,2545.3,2544.8,1.0741]
[1726806069089,4.3164,2545.3,2544.8,1.46699]
[1726806069380,3.9288,2545.2,2544.4,3.2078]
[1726806069584,1.1261,2545.2,2544.4,3.2078]
[1726806069778,1.1261,2545.2,2544.7,3.2078]
[1726806069982,8.0864,2545.3,2544.7,3.2078]
[1726806070487,8.0864,2545.3,2544.7,3.6007]
[1726806070689,8.0864,2545.3,2544.8,0.39289]
[1726806070880,4.3164,2545.3,2544.7,3.2078]
[1726806071084,4.3164,2545.3,2544.8,1.0541]
[1726806072689,4.3164,2545.3,2544.7,3.6007]
[1726806072991,4.3164,2545.3,2544.8,0.39289]
[1726806073293,4.3164,2545.3,2544.7,3.6007]
[1726806073789,4.3164,2545.3,2544.7,3.2078]
[1726806073990,4.3164,2545.3,2544.7,3.6007]
[1726806074486,4.3164,2545.3,2544.7,3.2078]
[1726806074678,3.2078,2546.0,2545.4,0.39279]
[1726806074878,1.1251,2546.0,2545.8,0.39274]
[1726806075079,1.1251,2546.0,2545.5,3.2078]
[1726806075486,2.51954,2545.9,2545.5,3.2078]
[1726806075686,2.1268,2545.9,2545.5,3.2078]
[1726806076188,1.0895,2545.9,2545.5,3.2078]
[1726806077393,3.2078,2546.1,2545.5,7.1358]
[1726806077690,5.06974747,2546.8,2545.8,3.2078]
[1726806077897,2.35364747,2546.8,2546.1,3.2078]
[1726806078192,2.35364747,2546.8,2546.2,0.39267]
[1726806078600,2.1555,2546.8,2546.2,0.39267]
[1726806078784,2.1555,2546.8,2546.3,0.39266]
[1726806078986,2.1555,2546.8,2546.3,0.39265]
[1726806079187,2.1555,2546.8,2546.1,3.2078]
[1726806079188,2.1555,2546.8,2546.2,0.39267]
[1726806079382,2.1555,2546.8,2546.1,3.2078]
[1726806080389,2.1555,2546.8,2546.1,3.60048]
[1726806080695,2.1555,2546.8,2545.8,3.2078]
[1726806080696,6.9778,2546.5,2545.8,3.2078]
[1726806080990,3.77,2546.2,2545.8,3.2078]
[1726806081193,2.5633,2546.1,2545.4,1.15]
[1726806081393,2.1706,2546.1,2545.4,1.54279]
[1726806081597,2.1706,2546.1,2545.5,0.39278]
[1726806081893,2.1706,2546.1,2545.4,1.54279]
[1726806082093,2.1706,2546.1,2545.5,0.39278]
[1726806082289,2.1706,2546.1,2545.4,1.15]
[1726806082480,2.1706,2546.1,2545.7,0.39275]
[1726806083394,2.1706,2546.1,2545.6,3.2078]
[1726806083897,5.9406,2546.1,2545.6,3.2078]
[1726806084099,6.3333,2546.1,2545.3,3.60061]
[1726806084399,0.39276,2545.7,2545.3,3.2078]
[1726806084581,0.58823327,2546.0,2545.3,3.2078]
[1726806084786,0.39271,2546.0,2545.3,3.60061]
[1726806084986,6.3333,2546.1,2545.3,3.2078]
[1726806085182,5.9406,2546.1,2545.4,0.39279]
[1726806085385,6.3333,2546.1,2545.4,0.39279]
[1726806085589,5.9406,2546.1,2545.5,0.39278]
[1726806085783,2.1706,2546.1,2545.6,3.60056]
[1726806086188,2.1706,2546.1,2545.3,3.2078]
[1726806086398,2.1706,2546.1,2545.5,0.39279]
[1726806086588,2.1706,2546.1,2545.6,3.2078]
[1726806086787,2.1706,2546.1,2545.1,4.38792967]
[1726806086788,2.1706,2546.1,2545.4,0.39279]
[1726806087094,2.56329,2546.1,2545.4,0.39279]
[1726806087297,5.9406,2546.1,2545.3,3.2078]
[1726806087490,3.77,2545.5,2545.3,3.2078]
[1726806087695,3.5337501,2545.4,2544.3,3.60076]
[1726806087885,3.77,2544.8,2544.3,0.39296]
[1726806088284,3.77,2545.1,2544.7,0.3929]
[1726806088587,3.2078,2545.3,2544.7,3.60071]
[1726806088999,3.2078,2545.3,2544.4,3.2078]
[1726806089199,3.77,2545.1,2544.5,0.39293]
[1726806089499,4.16285,2545.1,2544.4,0.39295]
[1726806089788,3.77,2545.1,2544.3,0.39296]
[1726806089990,3.77,2545.1,2544.4,0.39295]
[1726806090492,3.77,2545.1,2544.4,3.2078]
[1726806090692,3.77,2545.1,2544.5,0.39293]
[1726806090900,3.77,2545.1,2544.4,3.60075]
[1726806091393,3.77,2545.1,2544.3,0.39297]
[1726806091697,3.77,2544.8,2544.2,1.45888]
[1726806091894,1.0671,2544.7,2544.2,1.45888]
[1726806092100,1.0671,2544.7,2543.4,1.1451]
[1726806092101,3.77,2544.3,2543.1,3.33724717]
[1726806092288,3.77,2544.3,2543.4,5.0281]
[1726806092488,3.77,2544.3,2543.7,0.39305]
[1726806092995,3.77,2544.3,2543.4,5.0281]
[1726806093193,3.77,2544.3,2543.7,0.39306]
[1726806093394,3.77,2544.3,2542.8,0.98301]
[1726806093395,3.77,2544.1,2543.1,3.2078]
[1726806093596,1.047,2544.0,2543.2,0.39314]
[1726806093795,1.047,2544.0,2543.1,3.2078]
[1726806094003,0.9414,2543.9,2543.3,0.39312]
[1726806094194,0.9414,2543.9,2542.7,4.5464]
[1726806094195,3.77,2543.5,2542.8,3.2078]
[1726806094496,1.047,2543.4,2542.8,3.2078]
[1726806094689,1.047,2543.4,2543.0,0.39316]
[1726806094887,7.9951,2543.8,2543.1,3.2078]
[1726806094888,1.0173,2543.8,2543.1,3.2078]
[1726806095085,1.0173,2543.8,2542.8,3.2078]
[1726806095086,3.77,2543.5,2542.8,3.2078]
[1726806095891,5.2721,2543.8,2543.2,0.39313]
[1726806095892,5.8343,2543.8,2543.2,0.39313]
[1726806096194,5.8343,2543.8,2542.8,3.2078]
[1726806096996,4.75238,2544.5,2542.8,3.2078]
[1726806096997,3.2078,2544.5,2543.7,3.2078]
[1726806097190,2.1446,2544.6,2543.7,3.2078]
[1726806097394,2.1446,2544.6,2543.8,0.39304]
[1726806097690,3.77,2544.4,2543.7,3.2078]
[1726806097888,3.77,2544.1,2543.7,3.2078]
[1726806098086,1.1212,2544.0,2543.7,3.2078]
[1726806098289,3.77,2543.8,2543.1,3.2078]
[1726806098701,3.77,2543.4,2543.1,3.2078]
[1726806098899,4.16313,2543.4,2542.8,3.2078]
[1726806099201,1.0307,2543.3,2542.8,3.2078]
[1726806100097,7.4578,2543.1,2541.7,3.2078]
[1726806100298,1.0331,2543.0,2541.9,1.033]
[1726806100498,1.0331,2543.0,2541.7,3.2078]
[1726806100499,4.25,2542.7,2541.7,3.2078]
[1726806100799,4.25,2542.0,2541.1,3.2078]
[1726806100988,4.25,2542.0,2541.3,0.39343]
[1726806101193,4.25,2542.0,2541.2,0.39344]
[1726806101599,7.4578,2542.0,2541.2,0.39344]
[1726806101896,0.39339,2541.6,2540.8,3.2078]
[1726806102095,7.4578,2541.7,2540.8,3.2078]
[1726806102297,7.4578,2541.7,2540.8,0.39351]
[1726806102498,7.4578,2541.7,2540.9,0.3935]
[1726806102694,7.4578,2541.7,2541.0,0.39348]
[1726806102915,7.4578,2541.7,2540.3,0.945]
[1726806102916,7.4578,2541.7,2540.9,0.39349]
[1726806103199,7.4578,2541.7,2541.0,0.39347]
[1726806103399,7.4578,2541.7,2540.8,3.2078]
[1726806103996,7.4578,2541.7,2540.5,3.60135]
[1726806104198,3.2078,2541.4,2540.5,3.2078]
[1726806104398,3.2078,2541.1,2540.5,3.60136]
[1726806104603,5.2308,2541.3,2540.1,4.1858]
[1726806104797,5.2308,2541.3,2540.6,0.39354]
[1726806105102,3.2078,2541.2,2540.1,0.978]
[1726806105300,3.2078,2541.2,2540.4,3.2078]
[1726806105993,3.2078,2541.2,2540.0,3.2078]
[1726806106802,3.2078,2540.9,2540.1,0.39361]
[1726806106999,3.60126,2541.2,2540.0,3.2078]
[1726806107299,3.2078,2541.2,2540.0,3.2078]
[1726806107503,3.2078,2541.2,2540.3,0.39358]
[1726806107809,3.2078,2541.2,2540.3,0.39359]
[1726806108003,3.2078,2541.2,2540.0,3.2078]
[1726806108501,3.2078,2541.2,2540.4,0.39356]
[1726806108701,0.9808,2541.3,2540.3,3.2078]
[1726806109007,4.25,2541.1,2540.3,3.2078]
[1726806109508,4.25,2541.1,2539.9,3.2078]
[1726806110017,0.39349,2541.0,2540.0,0.39363]
[1726806110308,3.2078,2540.9,2540.0,0.39363]
[1726806110493,4.25,2540.8,2539.9,3.60144]
[1726806110907,4.25,2540.8,2540.0,0.39364]
[1726806111298,4.25,2540.8,2540.0,0.39363]
[1726806111804,4.25,2540.8,2540.3,0.39359]
[1726806112103,3.2078,2541.5,2540.8,0.3935]
[1726806112306,7.4578,2541.5,2540.4,4.48954984]
[1726806112603,0.39343,2541.4,2540.3,3.2078]
[1726806112799,7.4578,2541.5,2540.5,0.39355]
[1726806113105,7.4578,2541.5,2540.3,3.2078]
[1726806113106,7.4578,2541.2,2540.3,3.2078]
[1726806113305,1.0,2541.1,2540.3,3.2078]
[1726806113508,1.39348,2541.1,2540.3,3.2078]
[1726806113699,1.0,2541.1,2540.3,3.2078]
[1726806113900,4.25,2540.8,2540.3,3.2078]
[1726806114501,1.0,2541.1,2540.6,0.39354]
[1726806114701,1.0,2541.1,2540.3,3.2078]
[1726806114702,1.0,2541.1,2540.7,0.39352]
[1726806114907,1.0,2541.1,2540.8,0.3935]
[1726806115212,1.0,2541.1,2540.4,1.0179]
[1726806115608,1.0,2541.1,2540.7,0.39352]
[1726806116112,1.0,2541.1,2540.8,3.60131]
[1726806116311,0.996,2541.6,2540.8,3.2078]
[1726806116701,3.2078,2541.7,2540.8,3.2078]
[1726806117308,1.0371,2542.0,2541.4,3.2078]
[1726806117309,4.2449,2542.0,2541.4,3.2078]
[1726806117515,3.2078,2542.0,2541.8,0.39335]
[1726806117704,3.2078,2542.0,2541.5,1.0184]
[1726806118106,4.64325,2542.5,2541.6,0.39338]
[1726806118314,4.25,2542.5,2541.5,1.0184]
[1726806118607,7.8511,2542.2,2541.4,3.60122]
[1726806118800,0.9491,2542.1,2541.5,0.3934]
[1726806119001,0.9491,2542.1,2541.4,3.2078]
[1726806119198,0.9491,2542.1,2541.4,0.39341]
[1726806119403,0.9491,2542.1,2541.3,0.9783]
[1726806119912,0.9491,2542.1,2541.5,0.3934]
[1726806120209,0.9491,2542.1,2541.1,4.2262]
[1726806120410,0.39337,2541.7,2541.1,3.2078]
[1726806120704,7.4578,2541.8,2541.1,3.2078]
[1726806120902,7.4578,2541.8,2541.1,3.60127]
[1726806121106,3.2078,2541.4,2540.3,3.2078]
[1726806121304,7.4578,2541.1,2540.3,3.2078]
[1726806121501,7.4578,2541.1,2540.4,0.39357]
[1726806121698,4.25,2541.1,2540.4,0.39357]
[1726806121901,7.4578,2541.1,2540.3,3.2078]
[1726806122105,4.25,2541.1,2540.4,0.39356]
[1726806122303,4.64347,2541.1,2540.4,0.39357]
[1726806122613,4.25,2541.1,2540.4,0.39357]
[1726806122810,3.2078,2541.0,2540.3,3.2078]
[1726806123015,4.25,2541.1,2540.3,3.2078]
[1726806123212,7.4578,2541.1,2540.3,3.2078]
[1726806123614,7.85127,2541.1,2540.3,3.2078]
[1726806123806,3.2078,2541.1,2540.3,3.2078]
[1726806124212,2.944,2541.3,2540.3,3.2078]
[1726806124409,2.944,2541.3,2540.7,0.39352]
[1726806124612,2.944,2541.3,2540.3,3.2078]
[1726806124613,1.9968,2541.3,2540.8,0.3935]
[1726806124915,1.9968,2541.3,2540.3,3.2078]
[1726806125419,7.4578,2541.1,2540.3,3.2078]
[1726806126105,0.39351,2540.9,2540.3,3.2078]
[1726806126812,4.1416,2541.0,2540.3,3.2078]
[1726806127114,0.39352,2540.8,2540.3,3.2078]
[1726806127312,7.4578,2540.7,2539.8,1.9919]
[1726806127512,0.975,2540.6,2540.0,0.39363]
[1726806128121,4.56385,2541.3,2540.6,0.39354]
[1726806128314,0.975,2541.2,2540.4,0.39357]
[1726806128508,0.975,2541.2,2540.6,0.19991966]
[1726806128509,0.39349,2541.0,2540.6,0.19991966]
[1726806128709,0.39362,2540.1,2539.2,0.12417048]
[1726806128917,0.39362,2540.1,2538.7,0.39384]
[1726806128918,4.25,2539.3,2538.7,0.39383]
[1726806129214,4.25,2539.9,2538.9,3.2078]
[1726806129413,5.1661,2540.0,2538.9,3.2078]
[1726806129608,5.1661,2540.0,2539.0,0.39379]
[1726806129813,5.1661,2540.0,2539.2,3.60156]
[1726806130019,4.1828,2540.0,2539.2,3.2078]
[1726806130314,4.1828,2540.0,2539.3,0.9553]
[1726806130512,4.1828,2540.0,2539.2,3.2078]
[1726806131516,4.25,2540.6,2539.8,3.2078]
[1726806131517,3.2078,2540.5,2539.8,3.2078]
[1726806131710,3.2078,2540.5,2539.5,3.2078]
[1726806131711,4.1491,2540.5,2539.5,3.2078]
[1726806132933,3.2078,2540.2,2539.5,3.2078]
[1726806133321,4.1491,2540.5,2539.8,3.2078]
[1726806133617,0.9413,2540.5,2539.6,0.3937]
[1726806134013,0.9413,2540.5,2539.7,0.39368]
[1726806134212,0.9413,2540.5,2539.6,0.3937]
[1726806134514,4.1788,2540.7,2540.1,3.2078]
[1726806134515,0.971,2540.7,2540.1,3.2078]
[1726806135022,0.9585,2541.3,2540.4,3.2078]
[1726806135209,3.2078,2541.5,2540.4,3.2078]
[1726806135411,1.9836,2541.2,2540.4,3.2078]
[1726806137119,3.2078,2541.0,2540.4,3.2078]
[1726806137721,3.2078,2541.0,2540.4,3.60136]
[1726806138216,1.9836,2541.2,2540.4,3.60136]
[1726806138418,3.2078,2541.2,2540.4,3.2078]
[1726806138624,3.2078,2541.9,2541.0,3.2078]
[1726806138811,5.1794,2542.2,2541.3,3.2078]
[1726806139316,5.1794,2542.2,2541.4,6.005]
[1726806139517,3.2078,2541.9,2540.9,3.2078]
[1726806139726,3.2078,2541.9,2540.8,4.58621]
[1726806139923,3.2078,2541.9,2541.2,0.39344]
[1726806140116,3.2078,2541.9,2541.1,3.2078]
[1726806140620,3.2078,2541.9,2540.8,0.9849]
[1726806140820,3.2078,2541.9,2540.9,3.2078]
[1726806141024,3.2078,2541.9,2540.9,3.60129]
[1726806141322,3.2078,2541.9,2541.2,0.39345]
[1726806141710,3.2078,2541.9,2541.3,0.39343]
[1726806142018,3.2078,2541.9,2541.2,3.2078]
[1726806142223,5.1794,2542.2,2541.3,0.39343]
[1726806142416,5.1794,2542.2,2541.6,0.39339]
[1726806142616,5.1794,2542.2,2541.5,0.3934]
[1726806142819,5.1794,2542.2,2541.5,0.39339]
[1726806143021,5.1794,2542.2,2541.2,3.2078]
[1726806143218,5.1794,2542.2,2541.5,0.3934]
[1726806143420,5.1794,2542.2,2541.5,3.2078]
[1726806143723,5.1794,2542.2,2541.1,4.145]
[1726806143930,3.2078,2541.6,2541.1,3.2078]
[1726806144122,3.2078,2541.6,2540.8,4.1927]
[1726806144322,1.9991,2541.5,2540.9,0.39349]
[1726806144626,3.2078,2543.2,2541.4,4.25]
[1726806144831,3.2078,2543.1,2542.7,4.25]
[1726806145123,3.2078,2543.5,2542.6,5.993]
[1726806145326,3.2078,2543.5,2542.7,0.39322]
[1726806145527,3.2078,2543.5,2542.8,0.39319]
[1726806145729,3.2078,2543.5,2543.0,0.39317]
[1726806145928,3.2078,2543.5,2542.7,3.2078]
[1726806146922,3.2078,2543.3,2542.0,3.2078]
[1726806147122,3.2078,2543.0,2542.0,3.2078]
[1726806148130,3.2078,2543.0,2542.0,3.60111]
[1726806148527,3.2078,2543.0,2542.0,3.2078]
[1726806148832,3.2078,2542.7,2542.0,3.2078]
[1726806149026,5.2069,2543.2,2542.0,3.2078]
[1726806149223,3.2078,2543.1,2542.0,3.2078]
[1726806149531,3.2078,2543.1,2542.0,3.60112]
[1726806149726,3.2078,2543.1,2542.1,0.39331]
[1726806149930,3.2078,2542.8,2542.2,0.39328]
[1726806150233,3.2078,2542.9,2542.2,0.39328]
[1726806150424,3.2078,2542.9,2542.3,3.2078]
[1726806150622,1.9991,2543.2,2542.6,0.39323]
[1726806150928,1.9991,2543.2,2542.7,3.601]
[1726806151226,1.9991,2543.2,2542.4,6.9449]
[1726806151435,1.9991,2543.2,2542.4,7.33815]
[1726806151627,1.9991,2543.2,2542.5,0.39325]
[1726806151828,1.9991,2543.2,2542.6,3.2078]
[1726806152126,5.2069,2543.2,2542.6,3.2078]
[1726806152335,1.9991,2543.2,2542.6,3.2078]
[1726806153527,1.9991,2543.2,2542.7,0.39321]
[1726806153929,1.9991,2543.2,2542.6,3.2078]
[1726806154129,1.9991,2543.2,2543.0,0.39316]
[1726806154341,1.9991,2543.2,2542.9,3.2078]
[1726806154628,1.9991,2543.2,2542.9,3.60098]
[1726806154823,1.9991,2543.2,2542.9,3.2078]
[1726806156035,1.9991,2543.2,2542.6,3.60103]
[1726806156232,5.2069,2543.2,2542.3,3.2078]
[1726806156534,0.9642,2543.1,2542.3,3.2078]
[1726806156740,4.172,2543.1,2542.5,0.39324]
[1726806156933,5.2069,2543.2,2542.6,3.2078]
[1726806157129,1.9991,2543.2,2542.8,0.3932]
[1726806157326,1.9991,2543.2,2542.7,0.39321]
[1726806157524,1.9991,2543.2,2542.6,3.2078]
[1726806157730,1.9991,2543.2,2542.8,0.3932]
[1726806157934,1.9991,2543.2,2542.7,0.39321]
[1726806158533,1.9991,2543.2,2542.6,3.60103]
[1726806158734,1.9991,2543.2,2542.7,0.39321]
[1726806159331,5.2069,2543.2,2542.8,0.3932]
[1726806159533,1.9991,2543.2,2542.8,0.3932]
[1726806159728,1.9991,2543.2,2542.6,3.2078]
[1726806159943,3.2078,2543.1,2542.6,3.2078]
[1726806160539,5.2069,2543.2,2542.6,3.2078]
[1726806161135,5.2069,2543.2,2542.6,3.60103]
[1726806161336,5.2069,2543.2,2542.6,3.2078]
[1726806161846,5.2069,2543.2,2542.6,3.60103]
[1726806162241,5.2069,2543.2,2542.7,0.39321]
[1726806162441,1.9991,2543.2,2542.8,0.3932]
[1726806163251,1.9991,2543.2,2542.6,3.2078]
[1726806163562,5.2069,2543.2,2542.6,0.39323]
[1726806163957,5.2069,2543.2,2542.4,0.9526]
[1726806164155,3.2078,2542.9,2542.3,3.2078]
[1726806164355,3.60096,2543.1,2542.3,0.39328]
[1726806164560,2.39225,2543.2,2542.4,0.39326]
[1726806164754,3.2078,2542.9,2542.5,0.39324]
[1726806166255,3.2078,2542.9,2542.3,3.2078]
[1726806166256,5.2069,2543.2,2542.3,3.2078]
[1726806166455,5.2069,2543.2,2542.6,3.2078]
[1726806166456,1.9991,2543.2,2542.6,3.2078]
[1726806166753,5.2069,2543.2,2542.9,0.39319]
[1726806166953,1.9991,2543.2,2542.9,0.39319]
[1726806167356,1.9991,2543.2,2542.8,0.39319]
[1726806167559,1.9991,2543.2,2542.9,0.39318]
[1726806168154,1.9991,2543.2,2542.6,3.2078]
[1726806168353,5.2069,2543.2,2542.8,0.39319]
[1726806168659,5.2069,2543.2,2542.9,0.39318]
[1726806168851,1.9991,2543.2,2542.6,3.2078]
[1726806169050,1.9991,2543.2,2542.9,0.39318]
[1726806169755,1.9991,2543.2,2542.6,3.2078]
[1726806169955,1.9991,2543.2,2542.9,0.39318]
[1726806170154,1.9991,2543.2,2543.0,0.39317]
[1726806170359,1.9991,2543.2,2542.9,0.39318]
[1726806170555,1.9991,2543.2,2543.1,0.39316]
[1726806171264,0.98246,2544.3,2543.1,0.39316]
[1726806171265,3.2078,2545.0,2543.3,1.37593]
[1726806171459,0.3928,2545.4,2544.6,3.2078]
[1726806171460,5.1416,2545.4,2544.6,3.2078]
[1726806171759,5.1416,2545.4,2544.5,3.2078]
[1726806171958,5.1416,2545.4,2544.3,3.78]
[1726806172362,5.1416,2545.4,2544.4,0.39294]
[1726806172563,5.1416,2545.4,2544.5,3.2078]
[1726806173357,1.9338,2545.4,2544.7,0.39291]
[1726806173556,1.9338,2545.4,2544.7,0.3929]
[1726806173752,1.9338,2545.4,2544.8,3.2078]
[1726806174563,1.9338,2545.4,2544.9,0.39286]
[1726806174973,3.2078,2545.8,2544.8,3.2078]
[1726806175268,3.78,2546.0,2545.4,3.2078]
[1726806175269,1.9377,2546.0,2545.4,3.2078]
[1726806175659,1.9377,2546.0,2545.4,3.6006]
[1726806175855,6.9878,2546.7,2545.4,3.2078]
[1726806176169,1.9377,2546.6,2545.5,0.39278]
[1726806176364,1.9377,2546.6,2545.4,3.2078]
[1726806176664,1.9377,2546.6,2545.7,3.60055]
[1726806176863,1.9377,2546.6,2545.7,3.2078]
[1726806177455,1.9377,2546.6,2546.0,3.2078]
[1726806177768,3.2078,2547.3,2546.4,3.2078]
[1726806177970,1.019,2547.0,2546.4,3.2078]
[1726806179068,1.019,2547.0,2546.5,0.39262]
[1726806179458,1.019,2547.0,2546.5,0.39263]
[1726806180162,1.019,2547.0,2546.4,3.2078]
[1726806180367,4.24,2547.6,2546.9,3.2078]
[1726806180570,1.9439,2547.5,2546.9,3.2078]
[1726806181156,1.9439,2547.5,2546.6,3.2078]
[1726806181362,4.24,2546.7,2546.0,3.2078]
[1726806181569,3.2078,2546.2,2545.6,3.2078]
[1726806182663,3.2078,2546.2,2545.6,3.60056]
[1726806183259,3.2078,2547.0,2546.1,3.2078]
[1726806183464,3.2078,2546.6,2546.1,0.39269]
[1726806183659,3.2078,2546.8,2546.0,0.3927]
[1726806183866,3.2078,2546.8,2545.8,3.2078]
[1726806184064,3.2078,2546.8,2545.9,0.39272]
[1726806184469,3.2078,2546.8,2545.8,3.2078]
[1726806184671,3.2078,2546.5,2545.8,3.2078]
[1726806186159,3.2078,2546.5,2545.8,0.39274]
[1726806186357,3.2078,2546.5,2545.8,3.2078]
[1726806186864,3.2078,2546.5,2546.0,0.3927]
[1726806187070,3.2078,2546.5,2545.9,0.39272]
[1726806187567,3.2078,2546.5,2545.8,3.60053]
[1726806187776,3.2078,2546.5,2545.9,0.39272]
[1726806188665,3.2078,2546.5,2545.8,3.60053]
[1726806189061,3.2078,2546.5,2545.4,5.971]
[1726806189062,3.2078,2546.5,2545.7,0.39275]
[1726806189262,3.2078,2545.9,2545.4,3.2078]
[1726806189470,3.2078,2545.9,2545.0,0.925]
[1726806189664,0.983,2545.8,2545.2,3.2078]
[1726806189864,0.983,2545.8,2545.3,0.39282]
[1726806190060,0.983,2545.8,2545.2,3.2078]
[1726806190460,0.983,2545.8,2544.9,3.2078]
[1726806190671,3.2078,2545.6,2544.9,3.2078]
[1726806191266,3.2078,2545.6,2544.9,3.60067]
[1726806192070,3.2078,2545.6,2545.0,0.39286]
[1726806192274,3.2078,2545.6,2544.9,3.2078]
[1726806192974,3.2078,2545.6,2545.1,0.39284]
[1726806193272,3.2078,2545.6,2544.9,3.60068]
[1726806193473,3.2078,2545.6,2544.9,3.2078]
[1726806193680,3.2078,2545.6,2544.7,6.3629]
[1726806193681,3.2078,2545.3,2544.5,5.1746]
[1726806193874,3.2078,2545.0,2544.5,0.9707]